fUSD/lending_fUSD_20240412
["ID","MTS","AMOUNT","RATE_DAILY","PERIOD"]
[322319922,1712951446253,-969.368,0.00035714,2]
[322319925,1712951446262,-1458.485,0.00035714,2]
[322319928,1712951446271,-398.0,0.00035714,2]
[322319930,1712951446281,-1615.0,0.00035714,2]
[322319932,1712951446290,-2412.037,0.00035714,2]
[322319935,1712951446300,-5404.0,0.00035714,2]
[322319936,1712951446309,-1048.569,0.00035714,2]
[322319939,1712951446318,-1301.36906119,0.00035714,2]
[322319941,1712951446335,-4342.63093881,0.00035714,2]
[322319943,1712951446345,-1596.89656764,0.00035714,2]
[322319947,1712951446357,-360.75999992,0.00035714,2]
[322319949,1712951446373,-1277.71517414,0.00035714,2]
[322319963,1712951446459,-1563.6282583,0.00035714,2]
[322319966,1712951446468,-1053.0,0.00035714,2]
[322319968,1712951446478,-154.29634422,0.00035782,7]
[322319970,1712951446487,-152.13,0.00035827,2]
[322319972,1712951446496,-319.74762998,0.00036131,2]
[322319974,1712951446505,-151.99775341,0.0003626,2]
[322319976,1712951446514,-159.22335695,0.00036308,7]
[322319978,1712951446524,-157.70207275,0.00036486,7]
[322319980,1712951446533,-556.0,0.00036548,7]
[322319982,1712951446542,-1000.0,0.000367,7]
[322319984,1712951446552,-1000.0,0.000367,7]
[322319986,1712951446561,-1000.0,0.000367,7]
[322319988,1712951446571,-566.32,0.00036707,2]
[322319990,1712951446580,-153.52245926,0.00036767,7]
[322319992,1712951446589,-367.47,0.0003679,10]
[322319994,1712951446598,-306.22,0.0003679,10]
[322319996,1712951446607,-4898.5335,0.000368,120]
[322319998,1712951446616,-158.89,0.000369,2]
[322320000,1712951446625,-391.98767581,0.000369,2]
[322320002,1712951446634,-391.98767573,0.000369,2]
[322320004,1712951446642,-391.98767573,0.000369,2]
[322320006,1712951446653,-391.98767573,0.000369,2]
[322320008,1712951446662,-391.98767573,0.000369,2]
[322320010,1712951446671,-291.90821348,0.000369,2]
[322320013,1712951446683,-100.07946225,0.000369,2]
[322320015,1712951446692,-391.98767573,0.000369,2]
[322320017,1712951446701,-391.98767573,0.000369,2]
[322320019,1712951446710,-391.98767573,0.000369,2]
[322320021,1712951446719,-391.98767573,0.000369,2]
[322320023,1712951446728,-391.98767573,0.000369,2]
[322320025,1712951446737,-170.98264796,0.000369,2]
[322320027,1712951446750,-221.00502777,0.000369,2]
[322320029,1712951446759,-391.98767573,0.000369,2]
[322320031,1712951446768,-391.98767573,0.000369,2]
[322320033,1712951446777,-391.98767573,0.000369,2]
[322320035,1712951446786,-391.98767573,0.000369,2]
[322320037,1712951446796,-391.98767573,0.000369,2]
[322320039,1712951446805,-391.98767573,0.000369,2]
[322320041,1712951446814,-391.98767573,0.000369,2]
[322320043,1712951446824,-391.98767573,0.000369,2]
[322320045,1712951446836,-3345.99356639,0.000369,9]
[322320047,1712951446847,-2360.75864999,0.000369,9]
[322320049,1712951446860,-650.0,0.00037,3]
[322320051,1712951446871,-152.78,0.000374,3]
[322320053,1712951446880,-156.21030622,0.0003741,7]
[322320055,1712951446889,-157.70207275,0.00037719,7]
[322320070,1712951447014,-556.0,0.00037781,7]
[322320072,1712951447023,-1000.0,0.00037797,15]
[322320074,1712951447033,-319.74762998,0.00037823,2]
[322320076,1712951447043,-4817.54857197,0.000379,2]
[322320080,1712951447067,-265.65206301,0.000379,2]
[322320087,1712951447124,-1347.5080046,0.000379,2]
[322320160,1712951447855,-262.33641826,0.00031332,2]
[322320163,1712951447870,-7968.0927497,0.00031332,2]
[322320165,1712951447881,-7546.48435595,0.000379,2]
[322320167,1712951447890,-2142.60787145,0.00037989,2]
[322320169,1712951447899,-170.7,0.00038,2]
[322320171,1712951447909,-152.22,0.00038001,2]
[322320173,1712951447919,-9845.19856088,0.00038011,2]
[322320175,1712951447929,-596.3,0.00038027,15]
[322320177,1712951447939,-151.99775341,0.0003818,2]
[322320179,1712951447949,-152.0,0.00038391,3]
[322320181,1712951447958,-1074.88,0.00038678,30]
[322320183,1712951447967,-17409.37299997,0.00038678,2]
[322320185,1712951447979,-12590.61700003,0.00038678,2]
[322320187,1712951447989,-6171.33,0.00038678,2]
[322320189,1712951447998,-10521.98730612,0.00038678,2]
[322320199,1712951448089,-3567.61474151,0.00038678,2]
[322320202,1712951448108,-304.875922,0.00038678,2]
[322320204,1712951448121,-673.36,0.00038678,2]
[322320206,1712951448133,-1938.833562,0.00038678,2]
[322321239,1712951472855,150.0,0.000154,2]
[322321279,1712951529178,298.48900028,0.000154,2]
[322321280,1712951529200,136.22015493,0.000154,2]
[322321281,1712951640983,1651.69151073,0.000181,2]
[322321283,1712951660973,1000.0,0.000135,2]
[322321284,1712951673708,150.0,0.00015,2]
[322321285,1712951673728,163.77984507,0.00015,2]
[322321286,1712951673748,150.0,0.00015,2]
[322321287,1712951673769,136.22015493,0.00015,2]
[322321302,1712952050766,160.79,0.00027154,120]
[322321304,1712952134438,299.99,0.00020898,7]
[322321306,1712952163809,150.0,0.00017338,2]
[322321307,1712952163830,34.12,0.00017338,2]
[322321312,1712952283180,-175.89,0.00018188,2]
[322321366,1712952631777,-467.81,0.00019311,2]
[322321367,1712952631788,-540.7026,0.00020411,2]
[322321368,1712952631797,-3647.09508538,0.00020511,2]
[322321369,1712952631846,-675.34496719,0.00020511,2]
[322321370,1712952632011,-1541.77518588,0.00020511,2]
[322321398,1712952637555,-5185.15101512,0.00020511,2]
[322321399,1712952637570,-1000.0,0.00020798,2]
[322321400,1712952637585,-4242.0661,0.00020798,2]
[322321401,1712952637600,-1356.70993468,0.00020798,2]
[322321402,1712952637616,-5887.37874019,0.00020798,2]
[322321403,1712952637631,-777.59175847,0.00020799,2]
[322321404,1712952637647,-16290.20618959,0.00020888,2]
[322321405,1712952637663,-5513.49626193,0.00020898,2]
[322321406,1712952637705,-1932.86245055,0.00020898,2]
[322321429,1712952639161,-311121.21713053,0.00020898,2]
[322321430,1712952639171,-100000.0,0.00020899,2]
[322321431,1712952639181,-245000.0,0.00020899,2]
[322321432,1712952639190,-150.99,0.00020899,2]
[322321433,1712952639202,-499.99,0.00020899,2]
[322321434,1712952639213,-178.0311027,0.000209,2]
[322321435,1712952639222,-150.99,0.000209,2]
[322321436,1712952639232,-151.99775341,0.000209,2]
[322321437,1712952639243,-1091.75870028,0.000209,2]
[322321438,1712952639253,-735.07678286,0.000209,2]
[322321439,1712952639264,-230.09597666,0.000209,3]
[322321443,1712952639288,-5349.64526396,0.0002098,2]
[322321445,1712952639306,-250.0,0.00020996,2]
[322321447,1712952639316,-94353.97542845,0.00020998,2]
[322321450,1712952639326,-526063.93527145,0.00020999,2]
[322321452,1712952639336,-1523507.62133253,0.00021,2]
[322321487,1712952639588,-2900.87232318,0.00021,2]
[322321500,1712952639701,-450.74000003,0.00021,2]
[322321535,1712952640022,-607.7939298,0.00020799,2]
[322321537,1712952640031,-395.17056899,0.00020899,2]
[322321539,1712952640041,-85288.56161672,0.00021,2]
[322321546,1712952640187,-1164.002061,0.00021,2]
[322321548,1712952640199,-351.97724781,0.00021,2]
[322321550,1712952640214,-954.66057987,0.00021,2]
[322321553,1712952640230,-761.06758442,0.00021,2]
[322321558,1712952640269,-285.5163047,0.00021,2]
[322321571,1712952640385,-375387.03,0.00021,2]
[322321799,1712952642801,-269.3582193,0.00020898,2]
[322321800,1712952642812,-9956.48753685,0.00021,2]
[322321802,1712952642907,-3182.36435979,0.00021,2]
[322321803,1712952642919,-2824.42670386,0.00021,2]
[322321804,1712952642930,-4580.22873994,0.00021,2]
[322321806,1712952642966,-1756.20766305,0.00021,2]
[322321807,1712952642978,-1000.87999974,0.00021,2]
[322321808,1712952642989,-704.733448,0.00021,2]
[322321809,1712952643030,-1637.33838385,0.00021,2]
[322321810,1712952643042,-5980.74399839,0.00021,2]
[322321811,1712952643088,-395.17056898,0.000209,2]
[322321812,1712952643097,-2324.64921302,0.00021,2]
[322321813,1712952643207,-4778.56233376,0.00021,2]
[322321847,1712952643653,-5356.76961006,0.00021,2]
[322321855,1712952645776,-18122.61218785,0.00020798,2]
[322321856,1712952645787,-4696.49990397,0.00020798,2]
[322321857,1712952645799,-2711.697472,0.00020798,2]
[322321858,1712952645835,-578.23135439,0.00020798,2]
[322321859,1712952645895,-53692.98988179,0.00020798,2]
[322321860,1712952645905,-148387.91110756,0.00021,2]
[322321861,1712952645917,-156972.65294049,0.00021,2]
[322321862,1712952645955,-249179.81022007,0.00021,2]
[322321863,1712952646017,-3146.21489622,0.00021,2]
[322321864,1712952646076,-783.36581766,0.00021,2]
[322321865,1712952646088,-34164.0,0.00021,2]
[322321866,1712952646099,-60926.00000001,0.00021,2]
[322321867,1712952646110,-5060.0,0.00021,2]
[322321868,1712952646123,-509.87596802,0.00021,2]
[322321874,1712952655715,352.48135877,0.00020998,7]
[322321879,1712952666212,288.5292445,0.00018188,2]
[322321898,1712952731673,-250.0,0.00021,3]
[322321918,1712952761644,150.0,0.00018188,2]
[322321919,1712952761666,713.44420511,0.00018188,2]
[322321921,1712952764945,744.35381165,0.00018188,2]
[322321936,1712952783542,150.5,0.0002099,15]
[322321939,1712952784059,150.5,0.0002098,15]
[322321941,1712952784551,150.5,0.0002097,15]
[322321994,1712952903568,150.5,0.0002099,15]
[322321995,1712952904062,150.5,0.0002098,15]
[322321996,1712952904531,150.5,0.0002097,15]
[322322020,1712953481048,314.041305,0.00029748,31]
[322322026,1712953697106,-537.0912553,0.00018809,2]
[322322027,1712953697131,-1000.0,0.00018814,2]
[322322028,1712953697156,-846.27158813,0.00018815,2]
[322322029,1712953697181,-604.49,0.00018824,2]
[322322033,1712953719910,150.0,0.00016712,2]
[322322034,1712953719956,22.43,0.00016712,2]
[322322035,1712953729382,155.0,0.00018824,2]
[322322037,1712953733988,150.0,0.00018824,2]
[322322038,1712953734009,150.0,0.00018824,2]
[322322039,1712953734031,23.42630436,0.00018824,2]
[322322041,1712953734078,126.57369564,0.00018824,2]
[322322042,1712953734103,150.0,0.00018824,2]
[322322043,1712953734125,150.0,0.00018824,2]
[322322044,1712953734146,8.96976963,0.00018824,2]
[322322045,1712953737953,150.0,0.00018824,2]
[322322046,1712953737974,5.0,0.00018824,2]
[322322048,1712953743637,150.0,0.00018824,2]
[322322049,1712953743657,150.0,0.00018824,2]
[322322050,1712953743677,23.24218697,0.00018824,2]
[322322051,1712953743765,150.5,0.0002099,15]
[322322052,1712953744343,262.0,0.0002098,15]
[322322054,1712953750011,257.98270365,0.00018824,2]
[322322055,1712953750035,150.0,0.00018824,2]
[322322056,1712953750060,27.56076162,0.00018824,2]
[322322058,1712953755353,157.041305,0.000232,7]
[322322059,1712953761682,297.18427555,0.00018824,2]
[322322061,1712953772103,435.54346527,0.00018824,2]
[322322062,1712953776640,150.0,0.00018255,2]
[322322063,1712953776661,150.0,0.00018255,2]
[322322064,1712953776684,150.0,0.00018255,2]
[322322065,1712953776706,150.0,0.00018255,2]
[322322066,1712953776726,38.84,0.00018255,2]
[322322067,1712953782932,360.70981972,0.00018824,2]
[322322068,1712953794919,360.18157282,0.00018824,2]
[322322069,1712953798006,150.0,0.00018824,2]
[322322070,1712953798028,48.126298,0.00018824,2]
[322322099,1712953831903,-1000.0,0.00020036,2]
[322322100,1712953831913,-357.21806914,0.00020037,2]
[322322101,1712953831925,-431.18512968,0.00020037,2]
[322322102,1712953831975,-319.60680118,0.00020037,2]
[322322103,1712953831984,-200.0,0.00020133,2]
[322322104,1712953831994,-250.0,0.00020152,2]
[322322105,1712953832003,-761.8366,0.00020306,2]
[322322106,1712953832012,-150.0,0.00020309,2]
[322322107,1712953832022,-2637.11672406,0.0002031,2]
[322322108,1712953832034,-404.406,0.0002031,2]
[322322109,1712953832079,-1163.4340001,0.0002031,2]
[322322110,1712953832091,-1272.24,0.0002031,2]
[322322111,1712953832104,-484.32,0.0002031,2]
[322322112,1712953832115,-517.9614323,0.0002031,2]
[322322113,1712953832127,-803.1102161,0.0002031,2]
[322322114,1712953832163,-3981.48688633,0.0002031,2]
[322322115,1712953832175,-665.08469825,0.0002031,2]
[322322116,1712953832186,-1401.420348,0.0002031,2]
[322322117,1712953832311,-805.126,0.0002031,2]
[322322118,1712953832322,-5287.47149266,0.0002031,2]
[322322152,1712953837818,-624.74353719,0.0002031,2]
[322322253,1712953839199,-910.71051118,0.0002031,2]
[322322254,1712953839213,-2941.36815383,0.0002031,2]
[322322257,1712953839223,-1016.80431323,0.00020406,2]
[322322259,1712953839233,-1500.4036629,0.00020409,2]
[322322261,1712953839243,-1000.0,0.00020453,2]
[322322263,1712953839253,-638.84,0.00020519,2]
[322322265,1712953839262,-162.275228,0.00020767,2]
[322322267,1712953839271,-535.74449533,0.00020767,2]
[322322269,1712953839281,-5434.17757865,0.00020769,2]
[322322287,1712953839516,-382.80154911,0.00020769,2]
[322322289,1712953839531,-856.067,0.00020769,2]
[322322291,1712953839544,-56915.41078841,0.00020769,2]
[322322295,1712953839556,-379.88735711,0.00020769,2]
[322322297,1712953839570,-948.46213447,0.00020769,2]
[322322299,1712953839581,-1348.36403412,0.00020769,2]
[322322301,1712953839593,-18873.14645957,0.00020769,2]
[322322304,1712953839603,-499.99,0.00020769,2]
[322322306,1712953839613,-1165.28046,0.0002079,2]
[322322308,1712953839624,-397.3328317,0.00020797,2]
[322322310,1712953839633,-10864.84083987,0.00020797,2]
[322322312,1712953839642,-634.4443,0.00020798,2]
[322322314,1712953839652,-150.99,0.00020798,2]
[322322316,1712953839661,-6150.67842349,0.000208,2]
[322322318,1712953839674,-1442.71030842,0.000208,2]
[322322320,1712953839683,-156.11572054,0.00020896,2]
[322322322,1712953839693,-3328.93879298,0.000209,2]
[322322324,1712953839703,-74492.0205,0.000209,2]
[322322326,1712953839713,-680.39278867,0.000209,2]
[322322328,1712953839723,-178.0311027,0.000209,2]
[322322331,1712953839733,-184.24281591,0.000209,2]
[322322334,1712953839743,-7500.0,0.000209,2]
[322322336,1712953839753,-290.12338088,0.000209,2]
[322322338,1712953839763,-153.47156102,0.000209,3]
[322322340,1712953839773,-319.74762998,0.000209,2]
[322322343,1712953839784,-727.83913352,0.000209,2]
[322322345,1712953839793,-399.13135038,0.000209,3]
[322322347,1712953839803,-395.17056898,0.000209,2]
[322322349,1712953839814,-152.90216585,0.000209,2]
[322322351,1712953839824,-1000.0,0.0002099,2]
[322322352,1712953839834,-157.041305,0.00020997,2]
[322322355,1712953839845,-157.041305,0.00020997,2]
[322322356,1712953839856,-157.041305,0.00020997,2]
[322322357,1712953839866,-157.041305,0.00020997,2]
[322322358,1712953839875,-157.041305,0.00020997,2]
[322322359,1712953839885,-157.041305,0.00020997,2]
[322322360,1712953839894,-157.041305,0.00020997,2]
[322322361,1712953839904,-1123.8434254,0.00020998,2]
[322322362,1712953839914,-200.17112835,0.00020998,2]
[322322363,1712953839924,-157.041305,0.00020998,2]
[322322365,1712953839933,-157.041305,0.00020998,2]
[322322368,1712953839947,-157.041305,0.00020998,2]
[322322370,1712953839957,-157.041305,0.00020998,2]
[322322372,1712953839968,-157.041305,0.00020998,2]
[322322374,1712953839978,-157.041305,0.00020998,2]
[322322376,1712953839988,-157.041305,0.00020998,2]
[322322378,1712953839999,-1411.97919348,0.00020999,2]
[322322380,1712953840009,-157.041305,0.00020999,2]
[322322382,1712953840020,-157.041305,0.00020999,2]
[322322384,1712953840030,-157.041305,0.00020999,2]
[322322386,1712953840041,-157.041305,0.00020999,2]
[322322388,1712953840051,-157.041305,0.00020999,2]
[322322390,1712953840062,-157.041305,0.00020999,2]
[322322392,1712953840072,-157.041305,0.00020999,2]
[322322394,1712953840083,-500.0,0.00020999,2]
[322322396,1712953840093,-500.0,0.00020999,2]
[322322398,1712953840104,-314.75329238,0.00020999,2]
[322322400,1712953840115,-362.43400401,0.00020999,2]
[322322402,1712953840124,-1385659.03174945,0.00021,2]
[322322428,1712953840361,-45955.9814627,0.00021,2]
[322322432,1712953840388,-1352.44769241,0.00021,2]
[322322434,1712953840402,-68139.29103555,0.00021,2]
[322322437,1712953840414,-650582.22481426,0.00021,2]
[322322439,1712953840424,-716.561392,0.00021,2]
[322322441,1712953840433,-443952.40379374,0.00021,2]
[322322443,1712953840445,-472.231578,0.00021,2]
[322322445,1712953840456,-306.36337179,0.00021,2]
[322322524,1712953841193,-150.99,0.0002099,2]
[322322526,1712953841204,-545.21,0.00021,2]
[322322533,1712953841324,-1580.66600976,0.00021,2]
[322322536,1712953841336,-251.17764464,0.00021,2]
[322322538,1712953841349,-514.19178915,0.00021,2]
[322322540,1712953841363,-2434.03995669,0.00021,2]
[322322543,1712953841375,-265.14111407,0.00021,2]
[322322545,1712953841387,-1379.87879308,0.00021,2]
[322322581,1712953841713,-267.52750464,0.00021,2]
[322322701,1712953842823,-1962.2339759,0.00021,2]
[322322727,1712953843001,-1106.88927481,0.00021,2]
[322322729,1712953843014,-3348.08259724,0.00021,2]
[322322731,1712953843025,-1940.526881,0.00021,2]
[322322733,1712953843037,-9265.78622769,0.00021,2]
[322322735,1712953843048,-475.26711097,0.00021,2]
[322322738,1712953843060,-800.62798915,0.00021,2]
[322322740,1712953843072,-3165.27522156,0.00021,2]
[322322742,1712953843084,-9186.10711524,0.00021,2]
[322322744,1712953843096,-4835.90488756,0.00021,2]
[322322746,1712953843110,-7802.7298357,0.00021,2]
[322322749,1712953843123,-725.6747346,0.00021,2]
[322322751,1712953843134,-4675.48893175,0.00021,2]
[322322753,1712953843146,-1903.13011282,0.00021,2]
[322322778,1712953844128,-485.43,0.0002099,3]
[322322779,1712953844138,-2716579.72875962,0.00021,2]
[322322780,1712953844149,-297.12,0.00021,2]
[322322781,1712953844159,-150.33,0.00021,2]
[322322782,1712953844168,-250.0,0.00021,3]
[322322783,1712953844178,-175.62,0.00021162,2]
[322322784,1712953844189,-1297.32105734,0.00021181,2]
[322322785,1712953844198,-3460.23139054,0.00021344,2]
[322322786,1712953844208,-160.79,0.00021723,2]
[322322787,1712953844218,-250.0,0.00021918,2]
[322322788,1712953844228,-250.0,0.00021918,2]
[322322789,1712953844238,-2537.25772202,0.00022311,2]
[322322790,1712953844247,-1067.92358722,0.00022736,2]
[322322791,1712953844257,-1108.01,0.00022777,2]
[322322792,1712953844267,-638.84,0.00022783,2]
[322322793,1712953844277,-3328.93879288,0.000229,2]
[322322794,1712953844288,-300.0,0.00023,3]
[322322795,1712953844298,-1000.0,0.00023009,2]
[322322796,1712953844309,-152.90216576,0.00023237,2]
[322322797,1712953844318,-6150.67842346,0.00023256,2]
[322322798,1712953844328,-1442.71030836,0.00023256,2]
[322322799,1712953844338,-1165.28047,0.0002329,2]
[322322800,1712953844347,-319.74762998,0.0002365,2]
[322322801,1712953844357,-202.72,0.00023954,2]
[322322802,1712953844366,-477.0,0.00024,2]
[322322803,1712953844375,-680.39278863,0.00024043,2]
[322322804,1712953844385,-1000.0,0.00024098,2]
[322322805,1712953844398,-1000.0,0.00024098,2]
[322322806,1712953844407,-1000.0,0.00024098,2]
[322322807,1712953844417,-1000.0,0.00024098,2]
[322322808,1712953844427,-1000.0,0.00024098,2]
[322322809,1712953844436,-1000.0,0.00024098,2]
[322322810,1712953844445,-1000.0,0.00024098,2]
[322322811,1712953844455,-1000.0,0.00024098,2]
[322322812,1712953844465,-1000.0,0.00024098,2]
[322322813,1712953844475,-1000.0,0.00024098,2]
[322322814,1712953844485,-1000.0,0.00024098,2]
[322322815,1712953844495,-1000.0,0.00024098,2]
[322322816,1712953844506,-1000.0,0.00024098,2]
[322322817,1712953844517,-1000.0,0.00024098,2]
[322322818,1712953844526,-1000.0,0.00024098,2]
[322322819,1712953844539,-1000.0,0.00024098,2]
[322322820,1712953844549,-1000.0,0.00024098,2]
[322322821,1712953844559,-1000.0,0.00024098,2]
[322322823,1712953844570,-1000.0,0.00024098,2]
[322322824,1712953844579,-1000.0,0.00024098,2]
[322322826,1712953844588,-1000.0,0.00024098,2]
[322322828,1712953844597,-1000.0,0.00024098,2]
[322322829,1712953844607,-152.0,0.00024098,2]
[322322830,1712953844618,-229.97,0.00024446,2]
[322322831,1712953844627,-228.72,0.00024658,2]
[322322832,1712953844636,-3328.93879288,0.000249,2]
[322322833,1712953844646,-2601.22645275,0.00025,2]
[322322834,1712953844656,-16877.19459715,0.00025,7]
[322322835,1712953844669,-799.62330309,0.00025,2]
[322322836,1712953844679,-642.33697296,0.00025,2]
[322322837,1712953844688,-297.12,0.00025,2]
[322322838,1712953844697,-350.0,0.00025,3]
[322322839,1712953844707,-638.84,0.00025047,2]
[322322840,1712953844716,-1108.01,0.00025517,2]
[322322841,1712953844725,-1000.0,0.00025566,2]
[322322842,1712953844735,-152.90216576,0.00025574,2]
[322322843,1712953844745,-6150.67842346,0.00025711,2]
[322322844,1712953844754,-1442.71030836,0.00025711,2]
[322322845,1712953844765,-1165.28047,0.0002579,2]
[322322846,1712953844774,-150.33,0.000258,2]
[322322847,1712953844784,-4230.45943756,0.00026,2]
[322322848,1712953844794,-60346.72284942,0.000263,2]
[322322849,1712953844804,-319.74762998,0.000264,2]
[322322850,1712953844813,-399.13135034,0.000264,11]
[322322851,1712953844822,-425.3340459,0.000265,2]
[322322852,1712953844833,-1094.40724165,0.00026611,2]
[322322853,1712953844842,-1042.43535499,0.00026611,2]
[322322854,1712953844852,-969.0,0.00026793,2]
[322322855,1712953844863,-3328.93879288,0.000269,2]
[322322856,1712953844873,-150.0,0.00026999,2]
[322322857,1712953844883,-1000.0,0.00027,2]
[322322858,1712953844893,-155.05767173,0.00027,2]
[322322859,1712953844902,-308.8565,0.00027,2]
[322322860,1712953844912,-400.0,0.00027,3]
[322322861,1712953844922,-314.041305,0.00027148,9]
[322322862,1712953844931,-680.39278863,0.00027186,3]
[322322863,1712953844943,-154.30035667,0.00027228,2]
[322322865,1712953845088,-638.84,0.00027311,2]
[322322866,1712953845098,-405.90756244,0.00027397,2]
[322322867,1712953845109,-162.79,0.00027397,2]
[322322868,1712953845118,-235.78,0.00027397,2]
[322322869,1712953845128,-156.62,0.00027397,2]
[322322870,1712953845137,-161.2,0.00027397,2]
[322322871,1712953845147,-5300.14755709,0.000274,2]
[322322873,1712953845156,-5823.42,0.000274,2]
[322322875,1712953845165,-5823.42,0.000274,2]
[322322877,1712953845174,-5823.42,0.000274,2]
[322322879,1712953845183,-5823.42,0.000274,2]
[322322881,1712953845192,-5823.42,0.000274,2]
[322322882,1712953845202,-314.041305,0.00027448,16]
[322322884,1712953845211,-153.80575563,0.00027651,2]
[322322886,1712953845220,-314.041305,0.00027748,13]
[322322887,1712953845230,-152.90216576,0.0002791,2]
[322322888,1712953845239,-161.17131455,0.00027944,2]
[322322889,1712953845248,-2779.29,0.00027945,5]
[322322890,1712953845258,-150.0,0.00027999,2]
[322322891,1712953845267,-20180.30698704,0.00028,2]
[322322892,1712953845276,-23537.74550508,0.00028,2]
[322322893,1712953845285,-470.7549101,0.00028,2]
[322322894,1712953845294,-154.30035667,0.00028001,2]
[322322895,1712953845303,-153.80575563,0.00028004,2]
[322322896,1712953845312,-1000.0,0.00028122,2]
[322322897,1712953845322,-314.041305,0.00028148,9]
[322322898,1712953845332,-6150.67842346,0.00028167,2]
[322322899,1712953845341,-1442.71030836,0.00028167,2]
[322322900,1712953845351,-153.91092494,0.00028261,2]
[322322901,1712953845364,-1165.28047,0.0002829,2]
[322322902,1712953845373,-297.12,0.000283,2]
[322322903,1712953845382,-153.80575563,0.00028369,2]
[322322904,1712953845393,-150.33,0.000284,2]
[322322905,1712953845403,-314.041305,0.00028448,16]
[322322906,1712953845412,-157.39180916,0.00028672,2]
[322322907,1712953845423,-314.041305,0.00028748,13]
[322322908,1712953845432,-3328.93879288,0.000289,2]
[322322909,1712953845453,-174129.2944111,0.00028942,5]
[322322910,1712953845463,-150.0,0.00028999,2]
[322322911,1712953845474,-6746.82289371,0.00029,2]
[322322912,1712953845484,-450.0,0.00029,3]
[322322913,1712953845494,-152.19,0.00029,2]
[322322914,1712953845503,-152.19,0.00029,2]
[322322915,1712953845513,-152.19,0.00029,2]
[322322916,1712953845524,-152.19,0.00029,2]
[322322917,1712953845534,-152.19,0.00029,2]
[322322918,1712953845544,-152.19,0.00029,2]
[322322919,1712953845554,-152.19,0.00029,2]
[322322920,1712953845565,-152.19,0.00029,2]
[322322921,1712953845574,-152.19,0.00029,2]
[322322922,1712953845584,-152.19,0.00029,2]
[322322923,1712953845594,-152.19,0.00029,2]
[322322924,1712953845604,-152.19,0.00029,2]
[322322925,1712953845617,-152.19,0.00029,2]
[322322926,1712953845627,-152.19,0.00029,2]
[322322927,1712953845637,-152.19,0.00029,2]
[322322928,1712953845646,-152.19,0.00029,2]
[322322929,1712953845656,-152.19,0.00029,2]
[322322930,1712953845666,-152.19,0.00029,2]
[322322931,1712953845677,-152.19,0.00029,2]
[322322932,1712953845686,-152.19,0.00029,2]
[322322933,1712953845696,-152.19,0.00029,2]
[322322934,1712953845706,-152.19,0.00029,2]
[322322935,1712953845716,-152.19,0.00029,2]
[322322936,1712953845726,-152.19,0.00029,2]
[322322937,1712953845736,-152.19,0.00029,2]
[322322938,1712953845746,-152.19,0.00029,2]
[322322939,1712953845756,-152.19,0.00029,2]
[322322940,1712953845766,-152.19,0.00029,2]
[322322941,1712953845776,-152.19,0.00029,2]
[322322943,1712953845799,-152.19,0.00029,2]
[322322944,1712953845824,-770.03,0.00029,2]
[322322946,1712953845841,-153.80575563,0.00029093,2]
[322322949,1712953845862,-314.041305,0.00029148,9]
[322322952,1712953845883,-319.74762998,0.0002915,2]
[322322955,1712953845899,-154.56277226,0.00029195,2]
[322322959,1712953845917,-154.30035667,0.00029371,2]
[322322962,1712953845935,-153.4143132,0.00029373,2]
[322322964,1712953845952,-314.041305,0.00029448,16]
[322322967,1712953845972,-441.9821801,0.000295,3]
[322322970,1712953845992,-153.5663279,0.00029533,2]
[322322973,1712953846010,-638.84,0.00029575,2]